lending/lending_fUSD_20250121
["ID","MTS","AMOUNT","RATE_DAILY","PERIOD"]
[349900921,1737486635791,-500.0,0.00020272,2]
[349900922,1737486635800,-1126.25,0.00020272,2]
[349900923,1737486635810,-500.0,0.00020272,2]
[349900924,1737486635821,-848.52,0.00020272,2]
[349900925,1737486635831,-500.0,0.00020272,2]
[349900926,1737486635842,-500.0,0.00020272,2]
[349900927,1737486635852,-839.34,0.00020272,2]
[349900928,1737486635863,-500.0,0.00020272,2]
[349900929,1737486635874,-500.0,0.00020272,2]
[349900930,1737486635884,-500.0,0.00020272,2]
[349900931,1737486635895,-500.0,0.00020272,2]
[349900932,1737486635907,-500.0,0.00020272,2]
[349900933,1737486635917,-585.82,0.00020272,2]
[349900934,1737486635926,-568.44,0.00020272,2]
[349900935,1737486635935,-500.0,0.00020272,2]
[349900936,1737486635945,-500.0,0.00020272,2]
[349900937,1737486635955,-1306.97,0.00020272,2]
[349900938,1737486635965,-1070.27,0.00020272,2]
[349900939,1737486635975,-500.0,0.00020272,2]
[349900940,1737486635984,-500.0,0.00020272,2]
[349900941,1737486635995,-500.0,0.00020272,2]
[349900942,1737486636004,-500.0,0.00020272,2]
[349900943,1737486636015,-1160.53,0.00020272,2]
[349900944,1737486636025,-500.0,0.00020272,2]
[349900945,1737486636035,-501.82926816,0.00020272,2]
[349900946,1737486636046,-500.0,0.00020272,2]
[349900947,1737486636056,-500.0,0.00020272,2]
[349900948,1737486636066,-500.0,0.00020272,2]
[349900949,1737486636076,-629.96,0.00020272,2]
[349900950,1737486636086,-500.0,0.00020272,2]
[349900951,1737486636095,-503.04,0.00020272,2]
[349900952,1737486636105,-500.0,0.00020272,2]
[349900953,1737486636115,-500.0,0.00020272,2]
[349900954,1737486636124,-500.0,0.00020272,2]
[349900955,1737486636134,-500.0,0.00020273,2]
[349900956,1737486636144,-480.76526334,0.00020273,2]
[349900957,1737486636155,-500.0,0.00020273,2]
[349900958,1737486636165,-500.0,0.00020273,2]
[349900959,1737486636175,-500.0,0.00020273,2]
[349900960,1737486636185,-500.0,0.00020273,2]
[349900961,1737486636195,-500.0,0.00020273,2]
[349900962,1737486636206,-183.91519886,0.00020273,2]
[349900963,1737486636216,-500.0,0.00020273,2]
[349900964,1737486636227,-500.0,0.00020273,2]
[349900965,1737486636236,-500.0,0.00020273,2]
[349900966,1737486636247,-500.0,0.00020273,2]
[349900967,1737486636256,-500.0,0.00020273,2]
[349900968,1737486636265,-500.0,0.00020273,2]
[349900969,1737486636274,-500.0,0.00020273,2]
[349900970,1737486636285,-500.0,0.00020273,2]
[349900971,1737486636294,-500.0,0.00020273,2]
[349900972,1737486636304,-500.0,0.00020273,2]
[349900973,1737486636314,-500.0,0.00020273,2]
[349900974,1737486636323,-500.0,0.00020273,2]
[349900975,1737486636333,-500.0,0.00020273,2]
[349900976,1737486636342,-380.59110718,0.00020273,2]
[349900977,1737486636352,-500.0,0.00020273,2]
[349900978,1737486636362,-500.0,0.00020273,2]
[349900979,1737486636372,-500.0,0.00020273,2]
[349900980,1737486636381,-500.0,0.00020273,2]
[349900981,1737486636391,-500.0,0.00020273,2]
[349900982,1737486636402,-289.48430533,0.00020273,2]
[349900983,1737486636412,-500.0,0.00020273,2]
[349900984,1737486636423,-500.0,0.00020273,2]
[349900985,1737486636433,-500.0,0.00020273,2]
[349900986,1737486636442,-500.0,0.00020273,2]
[349900987,1737486636452,-500.0,0.00020273,2]
[349900988,1737486636462,-500.0,0.00020273,2]
[349900989,1737486636471,-500.0,0.00020273,2]
[349900990,1737486636481,-500.0,0.00020273,2]
[349900991,1737486636492,-500.0,0.00020273,2]
[349900992,1737486636501,-500.0,0.00020273,2]
[349900993,1737486636511,-500.0,0.00020273,2]
[349900994,1737486636521,-500.0,0.00020273,2]
[349900995,1737486636531,-500.0,0.00020273,2]
[349900996,1737486636541,-500.0,0.00020273,2]
[349900997,1737486636550,-500.0,0.00020273,2]
[349900998,1737486636559,-500.0,0.00020273,2]
[349900999,1737486636569,-500.0,0.00020273,2]
[349901000,1737486636579,-500.0,0.00020273,2]
[349901001,1737486636588,-500.0,0.00020273,2]
[349901002,1737486636597,-500.0,0.00020273,2]
[349901003,1737486636607,-441.61,0.00020273,2]
[349901004,1737486636616,-500.0,0.00020273,2]
[349901005,1737486636626,-500.0,0.00020273,2]
[349901006,1737486636636,-500.0,0.00020273,2]
[349901007,1737486636645,-530.62516708,0.00020273,2]
[349901008,1737486636657,-500.0,0.00020273,2]
[349901009,1737486636666,-500.0,0.00020273,2]
[349901010,1737486636676,-500.0,0.00020273,2]
[349901011,1737486636686,-500.0,0.00020273,2]
[349901012,1737486636696,-500.0,0.00020273,2]
[349901013,1737486636706,-372.38042427,0.00020308,2]
[349901014,1737486636715,-500.0,0.00020329,2]
[349901015,1737486636725,-150.0,0.00020335,2]
[349901016,1737486636734,-3902.0,0.00020335,2]
[349901017,1737486636743,-152.0,0.00020348,3]
[349901018,1737486636753,-294.07,0.00020409,2]
[349901019,1737486636763,-500.0,0.00020418,2]
[349901020,1737486636772,-979.62,0.00020418,2]
[349901021,1737486636783,-500.0,0.00020418,2]
[349901022,1737486636792,-1056.08,0.00020418,2]
[349901023,1737486636801,-595.23,0.00020418,2]
[349901024,1737486636812,-1012.32,0.00020418,2]
[349901025,1737486636822,-877.94,0.00020418,2]
[349901026,1737486636831,-580.34,0.00020418,2]
[349901027,1737486636840,-818.61,0.00020418,2]
[349901028,1737486636850,-1687.88,0.00020418,2]
[349901029,1737486636859,-1370.17,0.00020418,2]
[349901030,1737486636869,-500.0,0.00020418,2]
[349901031,1737486636879,-2197.78,0.00020418,2]
[349901032,1737486636889,-500.0,0.00020418,2]
[349901033,1737486636899,-500.0,0.00020418,2]
[349901034,1737486636908,-699.78,0.00020418,2]
[349901035,1737486636918,-330.81060941,0.00020419,2]
[349901036,1737486636927,-500.0,0.00020419,2]
[349901037,1737486636936,-500.0,0.00020419,2]
[349901038,1737486636946,-500.0,0.00020419,2]
[349901039,1737486636956,-500.0,0.00020419,2]
[349901040,1737486636966,-500.0,0.00020419,2]
[349901041,1737486636976,-500.0,0.00020419,2]
[349901042,1737486636987,-500.0,0.00020419,2]
[349901043,1737486636998,-500.0,0.00020419,2]
[349901044,1737486637008,-500.0,0.00020419,2]
[349901045,1737486637018,-171.0045855,0.00020419,2]
[349901046,1737486637029,-500.0,0.00020419,2]
[349901047,1737486637039,-500.0,0.00020419,2]
[349901048,1737486637049,-500.0,0.00020419,2]
[349901049,1737486637059,-500.0,0.00020419,2]
[349901050,1737486637069,-500.0,0.00020419,2]
[349901051,1737486637079,-500.0,0.00020419,2]
[349901052,1737486637089,-500.0,0.00020419,2]
[349901053,1737486637100,-500.0,0.00020419,2]
[349901054,1737486637110,-300.30596388,0.00020419,2]
[349901055,1737486637119,-500.0,0.00020419,2]
[349901056,1737486637128,-500.0,0.00020419,2]
[349901057,1737486637138,-508.86,0.00020419,2]
[349901058,1737486637148,-500.0,0.00020419,2]
[349901059,1737486637162,-357.0438408,0.00020419,2]
[349901060,1737486637171,-500.0,0.00020419,2]
[349901061,1737486637181,-500.0,0.00020419,2]
[349901062,1737486637191,-649.68,0.00020419,2]
[349901063,1737486637201,-500.0,0.00020419,2]
[349901064,1737486637215,-500.0,0.00020419,2]
[349901065,1737486637226,-500.0,0.00020419,2]
[349901066,1737486637236,-500.0,0.00020419,2]
[349901067,1737486637247,-500.0,0.00020419,2]
[349901068,1737486637256,-1426.37,0.00020419,2]
[349901069,1737486637266,-460.39990539,0.00020419,2]
[349901070,1737486637275,-500.0,0.00020419,2]
[349901071,1737486637285,-597.82,0.00020419,2]
[349901072,1737486637294,-641.45,0.00020419,2]
[349901073,1737486637303,-500.0,0.00020419,2]
[349901074,1737486637313,-500.0,0.00020419,2]
[349901075,1737486637322,-500.0,0.00020419,2]
[349901076,1737486637331,-500.0,0.00020419,2]
[349901077,1737486637342,-500.0,0.00020419,2]
[349901078,1737486637351,-1042.37,0.00020419,2]
[349901079,1737486637361,-500.0,0.00020419,2]
[349901080,1737486637372,-273.45771547,0.00020419,2]
[349901081,1737486637382,-718.04,0.00020419,2]
[349901082,1737486637391,-500.0,0.00020419,2]
[349901083,1737486637401,-500.0,0.00020419,2]
[349901084,1737486637412,-500.0,0.00020419,2]
[349901085,1737486637421,-570.63,0.00020419,2]
[349901086,1737486637431,-500.0,0.00020419,2]
[349901087,1737486637441,-500.0,0.00020419,2]
[349901088,1737486637450,-500.0,0.00020419,2]
[349901089,1737486637633,-500.0,0.00020419,2]
[349901090,1737486637644,-1700.84,0.00020419,2]
[349901091,1737486637655,-500.0,0.00020419,2]
[349901092,1737486637664,-500.0,0.00020419,2]
[349901093,1737486637674,-500.0,0.00020419,2]
[349901094,1737486637684,-500.0,0.00020419,2]
[349901095,1737486637694,-500.0,0.00020419,2]
[349901096,1737486637704,-500.0,0.00020419,2]
[349901097,1737486637714,-500.0,0.00020419,2]
[349901098,1737486637723,-500.0,0.00020419,2]
[349901099,1737486637733,-500.0,0.00020419,2]
[349901100,1737486637743,-647.26839502,0.00020419,2]
[349901101,1737486637754,-500.0,0.00020419,2]
[349901102,1737486637763,-500.0,0.00020419,2]
[349901103,1737486637773,-500.0,0.00020419,2]
[349901104,1737486637783,-500.0,0.00020421,2]
[349901105,1737486637793,-500.0,0.00020437,2]
[349901106,1737486637803,-372.38042427,0.00020445,2]
[349901107,1737486637812,-161.32954782,0.00020446,2]
[349901108,1737486637822,-311.84402139,0.00020446,2]
[349901109,1737486637831,-150.0,0.00020466,2]
[349901110,1737486637841,-11509.61762282,0.000205,15]
[349901111,1737486637850,-547.29,0.00020542,2]
[349901112,1737486637860,-500.0,0.00020542,2]
[349901113,1737486637869,-500.0,0.00020542,2]
[349901114,1737486637880,-500.0,0.00020542,2]
[349901115,1737486637890,-500.0,0.00020542,2]
[349901116,1737486637900,-500.0,0.00020542,2]
[349901117,1737486637911,-500.0,0.00020542,2]
[349901118,1737486637921,-649.62676109,0.00020546,2]
[349901119,1737486637930,-500.0,0.00020546,2]
[349901120,1737486637939,-500.0,0.00020546,2]
[349901121,1737486637949,-500.0,0.00020546,2]
[349901122,1737486637959,-500.0,0.00020546,2]
[349901124,1737486637969,-500.0,0.00020546,2]
[349901125,1737486637980,-500.0,0.00020546,2]
[349901126,1737486637990,-500.0,0.00020546,2]
[349901127,1737486638000,-500.0,0.00020546,2]
[349901128,1737486638011,-500.0,0.00020546,2]
[349901129,1737486638022,-500.0,0.00020546,2]
[349901130,1737486638031,-500.0,0.00020546,2]
[349901131,1737486638041,-500.0,0.00020546,2]
[349901132,1737486638051,-500.0,0.00020546,2]
[349901133,1737486638062,-500.0,0.00020546,2]
[349901134,1737486638071,-500.0,0.00020546,2]
[349901135,1737486638080,-539.84,0.00020546,2]
[349901136,1737486638091,-519.83113155,0.00020546,2]
[349901137,1737486638102,-500.0,0.00020546,2]
[349901138,1737486638112,-500.0,0.00020546,2]
[349901139,1737486638122,-500.0,0.00020546,2]
[349901140,1737486638131,-500.0,0.00020546,2]
[349901141,1737486638141,-500.0,0.00020546,2]
[349901142,1737486638151,-500.0,0.00020546,2]
[349901143,1737486638161,-500.0,0.00020546,2]
[349901144,1737486638171,-459.94625229,0.00020546,2]
[349901145,1737486638183,-500.0,0.00020546,2]
[349901146,1737486638193,-500.0,0.00020546,2]
[349901147,1737486638207,-500.0,0.00020546,2]
[349901148,1737486638216,-500.0,0.00020546,2]
[349901149,1737486638226,-500.0,0.00020546,2]
[349901150,1737486638234,-500.0,0.00020546,2]
[349901151,1737486638245,-500.0,0.00020546,2]
[349901152,1737486638256,-500.0,0.00020546,2]
[349901153,1737486638265,-500.0,0.00020546,2]
[349901154,1737486638275,-500.0,0.00020546,2]
[349901155,1737486638287,-500.0,0.00020546,2]
[349901156,1737486638297,-500.0,0.00020546,2]
[349901157,1737486638306,-500.0,0.00020546,2]
[349901158,1737486638316,-500.0,0.00020546,2]
[349901159,1737486638326,-500.0,0.00020546,2]
[349901160,1737486638337,-500.0,0.00020546,2]
[349901161,1737486638346,-500.0,0.00020546,2]
[349901162,1737486638356,-500.0,0.00020546,2]
[349901163,1737486638368,-500.0,0.00020546,2]
[349901164,1737486638378,-500.0,0.00020546,2]
[349901165,1737486638387,-500.0,0.00020546,2]
[349901166,1737486638397,-500.0,0.00020546,2]
[349901167,1737486638410,-500.0,0.00020546,2]
[349901168,1737486638420,-500.0,0.00020546,2]
[349901169,1737486638430,-500.0,0.00020546,2]
[349901170,1737486638439,-500.0,0.00020546,2]
[349901171,1737486638449,-500.0,0.00020546,2]
[349901172,1737486638458,-500.0,0.00020546,2]
[349901173,1737486638469,-500.0,0.00020546,2]
[349901174,1737486638480,-500.0,0.00020546,2]
[349901176,1737486638489,-500.0,0.00020546,2]
[349901178,1737486638500,-500.0,0.00020546,2]
[349901180,1737486638509,-178.41376934,0.00020546,2]
[349901181,1737486638519,-229.14697648,0.00020546,2]
[349901183,1737486638528,-2606.35,0.00020546,2]
[349901184,1737486638538,-535.12,0.00020546,2]
[349901185,1737486638548,-918.3,0.00020546,2]
[349901186,1737486638559,-500.0,0.00020546,2]
[349901187,1737486638568,-500.0,0.00020546,2]
[349901188,1737486638578,-469.616081,0.00020546,2]
[349901189,1737486638588,-500.0,0.00020546,2]
[349901191,1737486638598,-500.0,0.00020546,2]
[349901193,1737486638607,-500.0,0.00020546,2]
[349901194,1737486638616,-500.0,0.00020546,2]
[349901196,1737486638625,-500.0,0.00020546,2]
[349901198,1737486638635,-500.0,0.00020546,2]
[349901199,1737486638646,-500.0,0.00020546,2]
[349901201,1737486638657,-611.97,0.00020546,2]
[349901202,1737486638667,-141.80464883,0.00020546,2]
[349901203,1737486639233,-461.2732,0.00020173,2]
[349901204,1737486639244,-566.28,0.00020272,2]
[349901205,1737486639255,-232.4292689,0.00020272,2]
[349901206,1737486639265,-500.0,0.00020272,2]
[349901207,1737486639275,-124.41677404,0.00020419,2]
[349901208,1737486639287,-375.58322596,0.00020419,2]
[349901209,1737486639298,-358.19535117,0.00020546,2]
[349901210,1737486639310,-272.221291,0.00020546,2]
[349901211,1737486639319,-2548.0,0.00020546,2]
[349901212,1737486639330,-541.15,0.00020546,2]
[349901213,1737486639340,-587.71,0.00020546,2]
[349901214,1737486639350,-531.14,0.00020546,2]
[349901215,1737486639359,-1987.2,0.00020546,2]
[349901216,1737486639369,-500.0,0.00020546,2]
[349901217,1737486639380,-500.0,0.00020546,2]
[349901218,1737486639390,-578.97,0.00020546,2]
[349901219,1737486639402,-500.0,0.00020546,2]
[349901220,1737486639412,-500.0,0.00020546,2]
[349901221,1737486639421,-1134.03,0.00020546,2]
[349901222,1737486639432,-560.04,0.00020546,2]
[349901223,1737486639442,-500.0,0.00020546,2]
[349901224,1737486639452,-500.0,0.00020546,2]
[349901225,1737486639462,-500.0,0.00020546,2]
[349901226,1737486639472,-731.71,0.00020546,2]
[349901227,1737486639482,-500.0,0.00020546,2]
[349901228,1737486639491,-500.0,0.00020546,2]
[349901229,1737486639500,-500.0,0.00020546,2]
[349901230,1737486639510,-500.0,0.00020546,2]
[349901231,1737486639520,-869.54,0.00020546,2]
[349901232,1737486639530,-1140.15,0.00020546,2]
[349901233,1737486639541,-500.0,0.00020546,2]
[349901234,1737486639551,-569.54,0.00020546,2]
[349901235,1737486639562,-500.0,0.00020546,2]
[349901236,1737486639572,-500.0,0.00020546,2]
[349901237,1737486639582,-500.0,0.00020546,2]
[349901238,1737486639591,-612.31,0.00020546,2]
[349901239,1737486639601,-500.0,0.00020546,2]
[349901240,1737486639610,-500.0,0.00020546,2]
[349901241,1737486639619,-500.0,0.00020546,2]
[349901242,1737486639629,-500.0,0.00020546,2]
[349901243,1737486639639,-1201.96,0.00020546,2]
[349901244,1737486639648,-762.31,0.00020546,2]
[349901245,1737486639659,-500.0,0.00020546,2]
[349901246,1737486639669,-500.0,0.00020546,2]
[349901247,1737486639677,-500.0,0.00020546,2]
[349901248,1737486639687,-500.0,0.00020546,2]
[349901249,1737486639697,-532.67,0.00020546,2]
[349901250,1737486639706,-500.0,0.00020546,2]
[349901251,1737486639716,-500.0,0.00020546,2]
[349901252,1737486639726,-1012.54,0.00020546,2]
[349901253,1737486639736,-756.34,0.00020546,2]
[349901254,1737486639747,-500.0,0.00020546,2]
[349901255,1737486639757,-1126.25,0.00020546,2]
[349901256,1737486639766,-848.52,0.00020546,2]
[349901257,1737486639776,-500.0,0.00020546,2]
[349901258,1737486639786,-500.0,0.00020546,2]
[349901259,1737486639796,-839.34,0.00020546,2]
[349901260,1737486639806,-505.71,0.00020546,2]
[349901261,1737486639815,-500.0,0.00020546,2]
[349901262,1737486639825,-500.0,0.00020546,2]
[349901263,1737486639835,-585.82,0.00020546,2]
[349901264,1737486639844,-568.44,0.00020546,2]
[349901265,1737486639854,-1306.97,0.00020546,2]
[349901266,1737486639864,-332.63312016,0.00020546,2]
[349901267,1737486639877,-737.63687984,0.00020546,2]
[349901268,1737486639886,-500.0,0.00020546,2]
[349901269,1737486639896,-500.0,0.00020546,2]
[349901270,1737486639906,-1160.53,0.00020546,2]
[349901271,1737486639916,-500.0,0.00020546,2]
[349901272,1737486639926,-500.0,0.00020546,2]
[349901273,1737486639936,-629.96,0.00020546,2]
[349901274,1737486639946,-500.0,0.00020546,2]
[349901275,1737486639955,-503.04,0.00020546,2]
[349901276,1737486640007,-500.0,0.00020546,2]
[349901278,1737486640017,-500.0,0.00020546,2]
[349901280,1737486640027,-566.28,0.00020546,2]
[349901282,1737486640037,-500.0,0.00020547,2]
[349901284,1737486640046,-500.0,0.00020547,2]
[349901286,1737486640055,-500.0,0.00020547,2]
[349901288,1737486640064,-500.0,0.00020547,2]
[349901290,1737486640073,-500.0,0.00020547,2]
[349901291,1737486640082,-500.0,0.00020547,2]
[349901292,1737486640091,-500.0,0.00020547,2]
[349901293,1737486640100,-500.0,0.00020547,2]
[349901294,1737486640110,-264.1047473,0.00020547,2]
[349901296,1737486640536,-1129.597,0.00020335,2]
[349901297,1737486640545,-500.0,0.00020419,2]
[349901298,1737486640555,-235.8952527,0.00020547,2]
[349901299,1737486640564,-500.0,0.00020547,2]
[349901300,1737486640573,-500.0,0.00020547,2]
[349901301,1737486640583,-500.0,0.00020547,2]
[349901302,1737486640592,-500.0,0.00020547,2]
[349901303,1737486640601,-500.0,0.00020547,2]
[349901304,1737486640611,-609.89659673,0.00020547,2]
[349901305,1737486640620,-500.0,0.00020547,2]
[349901306,1737486640629,-500.0,0.00020547,2]
[349901307,1737486640639,-500.0,0.00020547,2]
[349901308,1737486640648,-500.0,0.00020547,2]
[349901309,1737486640658,-500.0,0.00020547,2]
[349901310,1737486640666,-500.0,0.00020547,2]
[349901311,1737486640674,-500.0,0.00020547,2]
[349901312,1737486640683,-500.0,0.00020547,2]
[349901313,1737486640692,-500.0,0.00020547,2]
[349901314,1737486640702,-127.73139056,0.00020547,2]
[349901315,1737486640746,-521.79860944,0.00020547,2]
[349901316,1737486640755,-500.0,0.00020547,2]
[349901317,1737486640765,-500.0,0.00020547,2]
[349901318,1737486640774,-500.0,0.00020547,2]
[349901319,1737486640784,-311.84402129,0.00020578,2]
[349901320,1737486640793,-372.38042427,0.00020581,2]
[349901321,1737486640801,-200.0,0.00020653,2]
[349901322,1737486640809,-124.05595057,0.00020692,2]
[349901323,1737486640823,-375.94404943,0.00020692,2]
[349901324,1737486640832,-979.62,0.00020692,2]
[349901325,1737486640842,-500.0,0.00020692,2]
[349901326,1737486640851,-1056.08,0.00020692,2]
[349901327,1737486640860,-595.23,0.00020692,2]
[349901328,1737486640870,-1012.32,0.00020692,2]
[349901329,1737486640879,-877.94,0.00020692,2]
[349901330,1737486640888,-580.34,0.00020692,2]
[349901331,1737486640898,-818.61,0.00020692,2]
[349901332,1737486640909,-553.50633143,0.00020692,2]
[349901351,1737486643219,-501.68,0.00020272,2]
[349901353,1737486643229,-500.0,0.00020272,2]
[349901354,1737486643238,-500.0,0.00020419,2]
[349901355,1737486643249,-501.68,0.00020546,2]
[349901356,1737486643258,-500.0,0.00020546,2]
[349901357,1737486643267,-1134.37366857,0.00020692,2]
[349901358,1737486643277,-1370.17,0.00020692,2]
[349901359,1737486643289,-2197.78,0.00020692,2]
[349901360,1737486643299,-500.0,0.00020692,2]
[349901361,1737486643308,-500.0,0.00020692,2]
[349901362,1737486643317,-699.78,0.00020692,2]
[349901363,1737486643327,-500.0,0.00020693,2]
[349901364,1737486643336,-161.17493938,0.00020693,2]
[349901365,1737486643345,-500.0,0.00020693,2]
[349901366,1737486643354,-246.16519841,0.00020693,2]
[349901367,1737486643369,-253.83480159,0.00020693,2]
[349901368,1737486643378,-500.0,0.00020693,2]
[349901369,1737486643387,-500.0,0.00020693,2]
[349901370,1737486643397,-500.0,0.00020693,2]
[349901371,1737486643406,-266.77573181,0.00020693,2]
[349901372,1737486643426,-233.22426819,0.00020693,2]
[349901373,1737486643435,-500.0,0.00020693,2]
[349901374,1737486643445,-1426.37,0.00020693,2]
[349901375,1737486643454,-500.0,0.00020693,2]
[349901376,1737486643464,-597.82,0.00020693,2]
[349901377,1737486643473,-641.45,0.00020693,2]
[349901378,1737486643483,-500.0,0.00020693,2]
[349901379,1737486643492,-500.0,0.00020693,2]
[349901380,1737486643501,-79.28535681,0.00020693,2]
[349901381,1737486643539,-437.08520287,0.00020693,2]
[349901382,1737486643548,-644.61545759,0.00020693,2]
[349901383,1737486643558,-500.0,0.00020693,2]
[349901384,1737486643567,-1042.37,0.00020693,2]
[349901385,1737486643577,-500.0,0.00020693,2]
[349901386,1737486643586,-718.04,0.00020693,2]
[349901387,1737486643595,-500.0,0.00020693,2]
[349901388,1737486643605,-500.0,0.00020693,2]
[349901389,1737486643615,-570.63,0.00020693,2]
[349901390,1737486643625,-500.0,0.00020693,2]
[349901391,1737486643634,-106.21000689,0.00020693,2]
[349901392,1737486643646,-393.78999311,0.00020693,2]
[349901393,1737486643656,-500.0,0.00020693,2]
[349901394,1737486643665,-27.50839145,0.00020693,2]
[349901419,1737486646168,-500.0,0.00020272,2]
[349901420,1737486646178,-500.0,0.00020546,2]
[349901421,1737486646188,-1673.33160855,0.00020693,2]
[349901422,1737486646198,-225.03091337,0.00020693,2]
[349901423,1737486646209,-500.0,0.00020693,2]
[349901424,1737486646220,-500.0,0.00020693,2]
[349901425,1737486646230,-500.0,0.00020693,2]
[349901426,1737486646239,-500.0,0.00020693,2]
[349901427,1737486646249,-500.0,0.00020693,2]
[349901428,1737486646259,-500.0,0.00020693,2]
[349901429,1737486646269,-500.0,0.00020693,2]
[349901430,1737486646279,-459.23304827,0.00020693,2]
[349901431,1737486646289,-500.0,0.00020693,2]
[349901432,1737486646299,-500.0,0.00020693,2]
[349901433,1737486646309,-311.84402129,0.0002071,2]
[349901434,1737486646319,-773.11,0.00020712,2]
[349901435,1737486646329,-773.11,0.00020712,2]
[349901436,1737486646339,-773.11,0.00020712,2]
[349901437,1737486646350,-508.37,0.00020712,2]
[349901438,1737486646360,-372.38042427,0.00020718,2]
[349901439,1737486646369,-161.32954782,0.00020764,2]
[349901440,1737486646379,-527.56267235,0.00020786,2]
[349901441,1737486646389,-528.45,0.00020816,2]
[349901442,1737486646398,-500.0,0.00020816,2]
[349901443,1737486646410,-497.05545348,0.00020816,2]
[349901444,1737486646423,-2.94454652,0.00020816,2]
[349901445,1737486646434,-439.41830235,0.0002082,2]
[349901446,1737486646443,-500.0,0.0002082,2]
[349901447,1737486646452,-416.72955776,0.0002082,2]
[349901448,1737486646471,-83.27044224,0.0002082,2]
[349901449,1737486646480,-495.26190294,0.0002082,2]
[349901450,1737486646496,-4.73809706,0.0002082,2]
[349901451,1737486646505,-500.0,0.0002082,2]
[349901452,1737486646515,-500.0,0.0002082,2]
[349901453,1737486646524,-272.30194394,0.0002082,2]
[349901454,1737486646662,-227.69805606,0.0002082,2]
[349901455,1737486646671,-500.0,0.0002082,2]
[349901456,1737486646681,-500.0,0.0002082,2]
[349901457,1737486646690,-97.99334647,0.0002082,2]
[349901458,1737486646706,-402.00665353,0.0002082,2]
[349901459,1737486646715,-500.0,0.0002082,2]
[349901460,1737486646725,-500.0,0.0002082,2]
[349901461,1737486646734,-500.0,0.0002082,2]
[349901462,1737486646744,-500.0,0.0002082,2]
[349901463,1737486646754,-500.0,0.0002082,2]
[349901464,1737486646763,-500.0,0.0002082,2]
[349901465,1737486646773,-500.0,0.0002082,2]
[349901466,1737486646783,-500.0,0.0002082,2]
[349901467,1737486646792,-500.0,0.0002082,2]
[349901468,1737486646803,-500.0,0.0002082,2]
[349901469,1737486646812,-500.0,0.0002082,2]
[349901470,1737486646822,-500.0,0.0002082,2]
[349901471,1737486646832,-500.0,0.0002082,2]
[349901472,1737486646841,-500.0,0.0002082,2]
[349901473,1737486646851,-500.0,0.0002082,2]
[349901474,1737486646860,-500.0,0.0002082,2]
[349901475,1737486646870,-500.0,0.0002082,2]
[349901476,1737486646879,-500.0,0.0002082,2]
[349901477,1737486646888,-500.0,0.0002082,2]
[349901478,1737486646899,-500.0,0.0002082,2]
[349901479,1737486646909,-500.0,0.0002082,2]
[349901480,1737486646918,-500.0,0.0002082,2]
[349901481,1737486646928,-500.0,0.0002082,2]